Cogmind - Beta 9.1 @@@ ROGUE MODE // 2019.11.05 @ 19:27:31 Player: Dhoby_Ghaut Result: Escaped! Performance ------------- Evolutions (9) 4500 Regions Visited (21) 4200 Robots Destroyed (246) 1230 Value Destroyed (12877) 12877 Prototype IDs (72) 1440 Alien Tech Used (2) 400 Bonus (8194) 8194 TOTAL SCORE: 32841 Bonus ------- High Alert Combat Kills 882 Follower Combat Kills 473 Aligned with FarCom 300 Met Zhirov 300 Met Warlord at Base 500 MAIN.C Attacked Warlord 500 Warlord Defense Kill 338 Met Warlord at Research 2000 Win 3000 Friendly Fire -99 Cogmind --------- Core Integrity 1503/1600 Matter 286/300 Energy 1366/1380 System Corruption 19% Temperature Cool (11) Location To Epsilon Eridani Parts ------- Power (2) Zero-point Reactor Zero-point Reactor Propulsion (4) Biometal Heavy Treads Advanced Heavy Siege Treads Utility (16) Experimental Heat Sink Advanced Cooling System Large Storage Unit Large Storage Unit High-capacity Storage Unit Experimental Energy Well Experimental Optical Array Experimental Targeting Computer Advanced Armor Integrity Analyzer Advanced Transmission Jammer Heavy Armor Plating Centrium Light Armor Plating Advanced Focal Shield Thermal Barrier Advanced Force Field Weapon (3) Quantum Rifle Enhanced Quantum Rifle Enhanced Nova Cannon Inventory (24) Zero-point Reactor Zero-point Reactor Zero-point Reactor Centrium Heavy Treads Biometal Heavy Treads Biometal Heavy Treads Biometal Heavy Treads Advanced Heat Sink Experimental Matter Compressor (500) Advanced Focal Shield EM Shield Advanced Shield Generator Phase Gun Quantum Rifle Nova Cannon Nova Cannon Nova Cannon Nova Cannon Vibroblade Peak State ------------ Power Zero-point Reactor Zero-point Reactor Propulsion Biometal Heavy Treads Biometal Heavy Treads Utility Advanced Heat Sink Experimental Heat Sink Advanced Cooling System Large Storage Unit Large Storage Unit High-capacity Storage Unit Experimental Energy Well Experimental Optical Array Experimental Targeting Computer Advanced Armor Integrity Analyzer Advanced Phase Shifter Centrium Light Armor Plating Advanced Focal Shield Thermal Barrier Advanced Shield Generator Advanced Force Field Weapon Phase Gun Phase Gun Enhanced Nova Cannon Inventory Zero-point Reactor Zero-point Reactor Zero-point Reactor Centrium Heavy Treads Biometal Heavy Treads Biometal Heavy Treads Biometal Heavy Treads Advanced Heavy Siege Treads Experimental Matter Compressor Improved Phase Shifter EM Shield Quantum Rifle Enhanced Quantum Rifle Nova Cannon Nova Cannon Nova Cannon Nova Cannon Enhanced Nova Cannon Vibroblade [Rating: 198] Favorites ----------- Power Micro Fission Core Engine Heavy Deuterium Engine Power Core Micro Fission Core Reactor Zero-point Reactor Propulsion Advanced Medium Treads Treads Advanced Medium Treads Leg Aluminum Leg Wheel Wheel Flight Unit Q-thruster Utility Large Storage Unit Device Advanced Heat Sink Storage Large Storage Unit Processor Spectral Analyzer Hackware Advanced Hacking Suite Protection Layered Light Armor Plating Weapon Cooled Particle Cannon Energy Gun Phase Gun Energy Cannon Cooled Particle Cannon Ballistic Gun Minigun Ballistic Cannon Light Cannon Launcher Grenade Launcher Special Weapon Remote Datajack Impact Weapon Heavy Hammer Slashing Weapon Great Axe Special Melee Weapon Datajack Build | -11 -10 -10 -10 -9 -8 -7 -7 -6 -5 -5 -5 -5 -4 -4 -4 -4 -4 -3 -3 -2 -1 ------- Run | Scr Mat Min Exi Min Mat Fac Sto Fac Fac Upp Upp Zhi Pro Fac Upp Upp War Pro Res Res Acc Slots Evolved 18 | . . . . . 4 2 . 2 2 . . . . 2 . . . . 2 2 2 Power 1 | . . . . . . . . . . . . . . 1 . . . . . . . Propulsion 2 | . . . . . . . . . 1 . . . . 1 . . . . . . . Utility 14 | . . . . . 3 2 . 2 1 . . . . . . . . . 2 2 2 Weapon 1 | . . . . . 1 . . . . . . . . . . . . . . . . Parts Attached 380 | 8 24 3 3 1 21 12 10 17 15 . 21 11 13 47 6 1 13 17 72 30 35 Power 29 | 2 2 1 . . 1 . 1 . 1 . . 2 . 3 1 . 1 2 7 . 5 Engine 10 | 2 2 1 . . 1 . . . . . . . . 1 1 . . 1 1 . . Core 5 | . . . . . . . 1 . 1 . . 1 . 1 . . . 1 . . . Reactor 14 | . . . . . . . . . . . . 1 . 1 . . 1 . 6 . 5 Propulsion 46 | 2 4 2 . . 8 2 . . 1 . 3 2 1 4 . . 1 4 9 1 2 Treads 36 | . 2 . . . 8 2 . . 1 . 3 1 1 4 . . 1 3 7 1 2 Leg 1 | . . 1 . . . . . . . . . . . . . . . . . . . Wheel 6 | 2 2 1 . . . . . . . . . . . . . . . 1 . . . Hover . | . . . . . . . . . . . . . . . . . . . . . . Flight 3 | . . . . . . . . . . . . 1 . . . . . . 2 . . Utility 154 | 2 5 . . 1 5 4 2 8 8 . 7 5 6 15 1 1 5 2 29 26 22 Device 72 | 1 1 . . . 2 2 . 4 2 . 1 2 4 10 1 1 3 . 13 10 15 Storage 25 | 1 4 . . 1 . 1 . . . . 2 . 1 2 . . 1 1 6 4 1 Processor 14 | . . . . . . 1 . . 2 . . . . . . . 1 . 2 5 3 Hackware 2 | . . . . . . . . . 1 . . . . . . . . . 1 . . Protection 41 | . . . . . 3 . 2 4 3 . 4 3 1 3 . . . 1 7 7 3 Artifact . | . . . . . . . . . . . . . . . . . . . . . . Weapon 151 | 2 13 . 3 . 7 6 7 9 5 . 11 2 6 25 4 . 6 9 27 3 6 Energy Gun 38 | 2 . . . . . . 1 . . . . . 2 6 2 . 1 5 15 . 4 Energy Cannon 60 | . 2 . 2 . 1 5 5 4 3 . 5 1 4 17 2 . 2 . 4 1 2 Ballistic Gun 9 | . . . . . 5 . . . . . 1 . . . . . . 1 . 2 . Ballistic Cannon 9 | . 8 . . . . . . . . . 1 . . . . . . . . . . Launcher 13 | . . . . . 1 . 1 1 . . 3 . . . . . 1 3 3 . . Special Weapon 2 | . . . . . . . . . . . 1 . . . . . 1 . . . . Impact Weapon 2 | . . . . . . 1 . 1 . . . . . . . . . . . . . Slashing Weapon 14 | . . . . . . . . 3 2 . . 1 . 2 . . 1 . 5 . . Piercing Weapon . | . . . . . . . . . . . . . . . . . . . . . . Special Melee Weapon 4 | . 3 . 1 . . . . . . . . . . . . . . . . . . Unidentified Prototypes 25 | . . . . . . 1 2 . . . . 4 . . . . 4 . 6 5 3 Parts Lost 114 | . 7 5 . . . . . 2 1 . 9 . 11 13 1 . 9 4 36 8 8 Power 10 | . 1 1 . . . . . . . . . . . 1 . . . 1 6 . . Propulsion 26 | . 3 2 . . . . . . . . 3 . 1 4 . . 2 2 9 . . Utility 42 | . 1 . . . . . . 1 1 . 3 . 5 7 . . 3 . 8 8 5 Weapon 36 | . 2 2 . . . . . 1 . . 3 . 5 1 1 . 4 1 13 . 3 Highest Loss Streak 14 | . 4 5 . . . . . 1 1 . 4 . 5 6 1 . 9 10 14 5 2 Average Slot Usage (%) 91 | . 99 86 82 100 99 97 100 94 88 94 96 99 94 97 94 93 91 91 78 86 87 Engine 2 | . 14 13 14 14 9 7 3 . . . . . . 2 5 5 2 4 . . . Core 1 | . . . . . . . 3 6 5 5 5 5 5 5 . . . 4 . . . Reactor 2 | . . . . . . . . . . . . . . 1 5 5 5 . 1 8 8 Treads 13 | . 9 18 . . 15 15 15 13 16 17 16 17 16 19 15 15 15 15 12 12 8 Wheel 1 | . 18 4 14 14 1 . . . . . . . . . . . . . 1 . . Device 16 | . 4 . . . 9 12 15 19 14 17 13 12 21 21 26 25 23 10 11 11 23 Storage 20 | . 23 28 28 28 18 16 23 20 17 17 18 17 21 22 26 26 26 30 19 16 15 Processor 3 | . . . . . . 4 . . 2 . . . . . . . 2 5 7 7 13 Hackware 1 | . . . . . . . . . . 5 5 5 5 2 . . . . 2 1 . Protection 8 | . . . . . 17 15 15 14 11 11 15 21 4 4 . . . 4 7 14 7 Energy Gun 4 | . 3 . . . . . . . . . . . 1 3 9 10 9 7 6 7 6 Energy Cannon 7 | . 4 8 . 28 4 6 22 16 12 17 11 7 12 10 5 5 3 . . 3 3 Ballistic Gun 2 | . . . . . 21 14 . . . . 2 5 . . . . . 4 . . 1 Ballistic Cannon 1 | . 18 8 . . . . . . . . 2 . . . . . . . . . . Naked Turns . | . . . . . . . . . . . . . . . . . . . . . . Heaviest Build 175 | 14 44 44 45 61 80 108 108 122 124 119 119 105 131 166 166 160 175 154 148 159 163 Greatest Support 155 | 26 40 40 10 10 40 60 60 60 83 83 83 64 70 127 127 127 127 103 125 130 155 Greatest Overweight (x) 8 | . 1 3 4 6 7 2 1 2 2 1 2 4 1 1 1 1 2 8 8 1 1 Average Overweight (x) 1 | . . 1 3 4 1 1 1 1 1 1 1 1 1 1 1 1 1 1 2 1 . Largest Inventory Capacity 32 | 6 16 16 16 18 18 24 24 24 24 24 24 24 32 32 32 32 32 32 32 22 24 Average Capacity 24 | 5 12 16 16 17 18 19 24 24 24 24 24 24 29 32 32 32 32 32 26 22 22 Most Carried 32 | 6 16 16 16 16 18 24 24 24 24 24 24 24 24 32 32 32 32 30 28 22 24 Average Carried 22 | 4 11 15 15 15 17 18 23 23 23 23 21 23 19 27 31 31 31 21 20 21 21 Final Capacity 32 | 6 16 16 16 18 18 24 24 24 24 24 24 24 32 32 32 32 32 32 22 22 24 Final Carried 32 | 6 16 16 15 16 18 24 24 24 24 24 22 24 20 31 32 32 31 22 22 21 23 Class Distribution -------------------- 28% | Hauler-Tank 20% | Scavenger-Tank 19% | Hauler-Mutant 8% | Mutant 7% | Scavenger-Mutant 6% | Hauler-Skirmisher 4% | Hauler-Assassin Dominant Class ---------------- Mutant | -10/Materials Mutant | -10/Mines Mutant | -10/Exiles Mutant | -9/Mines Scavenger-Tank | -8/Materials Scavenger-Skirmisher | -7/Factory Hauler-Tank | -7/Storage Hauler-Assassin | -6/Factory Hauler-Mutant | -5/Factory Hauler-Tank | -5/Upper Caves Hauler-Tank | -5/Upper Caves Hauler-Mutant | -5/Zhirov Hauler-Tank | -4/Proximity Caves Hauler-Tank | -4/Factory Hauler-Tank | -4/Upper Caves Hauler-Tank | -4/Upper Caves Hauler-Mutant | -4/Warlord Scavenger-Tank | -3/Proximity Caves Hauler-Mutant | -3/Research Scavenger-Mutant | -2/Research Scavenger-Tank | -1/Access Resources | -11 -10 -10 -10 -9 -8 -7 -7 -6 -5 -5 -5 -5 -4 -4 -4 -4 -4 -3 -3 -2 -1 ----------- Run | Scr Mat Min Exi Min Mat Fac Sto Fac Fac Upp Upp Zhi Pro Fac Upp Upp War Pro Res Res Acc Matter Collected 6897 | 280 466 138 . 20 617 169 208 84 252 . 429 340 299 442 72 10 146 242 1501 287 895 Remotely . | . . . . . . . . . . . . . . . . . . . . . . Salvage Created 13497 | 117 390 . . . 857 . 544 270 529 . 1273 413 623 1719 211 90 177 432 2229 104 3519 Parts 570 | 6 18 . . . 49 . 21 19 34 . 38 5 22 64 4 2 6 14 91 1 176 Haulers Intercepted 4 | . 1 . . . 2 . . . . . . . . . . . . . 1 . . Recyclers Shooed 9 | 1 . . . . 1 . . . 1 . . . . 2 . . . . 4 . . Parts Field Recycled . | . . . . . . . . . . . . . . . . . . . . . . Retrieved Matter . | . . . . . . . . . . . . . . . . . . . . . . Parts Self-Destructed 143 | . . . . . . . . . . . 37 4 18 . 3 . 70 11 . . . Prevented 20 | . . . . . . . . . . . . . . . 1 2 17 . . . . Kills | -11 -10 -10 -10 -9 -8 -7 -7 -6 -5 -5 -5 -5 -4 -4 -4 -4 -4 -3 -3 -2 -1 ------- Run | Scr Mat Min Exi Min Mat Fac Sto Fac Fac Upp Upp Zhi Pro Fac Upp Upp War Pro Res Res Acc Combat Hostiles Destroyed 207 | . 8 . . . 16 . 12 7 8 . 25 . 9 20 3 1 3 14 30 2 49 Melee 5 | . . . . . . . . . . . . . . 1 . . . . 4 . . Guns 65 | . . . . . 13 . . . . . 1 . 1 2 . . 2 5 10 1 30 Cannons 88 | . 8 . . . 2 . 9 4 7 . 17 . 7 9 2 1 1 . 3 . 18 AOE 29 | . . . . . 1 . 3 3 . . 5 . . . . . . 9 8 . . Classes Destroyed 17 | 2 4 . . . 2 . 2 1 1 . 2 . . . . . 1 . . 1 1 Worker 9 | . . . . . . . 1 1 . . . . . 3 . . . . 3 . 1 Builder 4 | . . . . . . . . . 2 . . . . . . . . . . . 2 Tunneler 3 | 3 . . . . . . . . . . . . . . . . . . . . . Hauler 4 | . 1 . . . 2 . . . . . . . . . . . . . 1 . . Recycler 9 | 1 . . . . . . 1 . . . . . . 1 . . . . 3 . 3 Operator 1 | . 1 . . . . . . . . . . . . . . . . . . . . Watcher 9 | . 3 . . . 1 . . . . . . . . 2 . . . . 1 . 2 Swarmer 46 | . . . . . 3 . 4 3 . . 4 . . . . . 1 10 6 . 15 Grunt 63 | . 8 . . . 6 . 6 2 2 . 15 . 4 7 . . . 3 4 . 6 Brawler 3 | . . . . . . . . . . . 1 . . . . . . 1 1 . . Duelist 6 | . . . . . . . 1 . . . 2 . . 1 . . . . . 1 1 Protector 1 | . . . . . . . . . . . . . . . . . . . . . 1 Sentry 23 | . . . . . 7 . 1 . 2 . 2 . 1 2 1 1 . . 1 . 5 Demolisher 1 | . . . . . . . . . . . . . . . . . . . . 1 . Specialist 1 | . . . . . . . . . . . . . . . . . 1 . . . . Hunter 11 | . . . . . . . . . . . 1 . 2 2 2 . . . . . 4 Programmer 51 | . . . . . . . . 2 4 . . . 2 8 . . . . 18 . 17 Savage 1 | . . . . . . . . . . . . . . . . . 1 . . . . Best Kill Streak 11 | 4 2 . . . 4 . 5 4 4 . 9 . 2 8 2 1 1 5 7 1 11 Combat Bots Only 9 | . 2 . . . 3 . 4 3 3 . 9 . 2 6 2 1 1 5 6 1 9 Max Kills in Single Turn 4 | 1 1 . . . 1 . 4 2 2 . 3 . 1 2 1 1 1 4 2 1 2 Gunslinging . | . . . . . . . . . . . . . . . . . . . . . . Exploded 4 | . . . . . 1 . 3 1 . . 2 . . . . . . 4 2 . . Melee 1 | . . . . . . . . . . . . . . 1 . . . . 1 . . Uniques/NPCs Destroyed . | . . . . . . . . . . . . . . . . . . . . . . Combat | -11 -10 -10 -10 -9 -8 -7 -7 -6 -5 -5 -5 -5 -4 -4 -4 -4 -4 -3 -3 -2 -1 -------- Run | Scr Mat Min Exi Min Mat Fac Sto Fac Fac Upp Upp Zhi Pro Fac Upp Upp War Pro Res Res Acc Damage Taken 23290 | . 955 358 . . 811 . 443 366 759 . 1997 . 1451 2467 482 39 1675 699 5526 2051 3211 Core 1690 | . 180 19 . . 131 . 27 29 19 . 116 . 124 185 49 . 102 38 308 266 97 Absorbed by Shields 3133 | . . . . . . . . . . . 6 . . 385 112 8 447 . . 1039 1136 Reduced by Siege Mode 286 | . . . . . . . . . . . . . . . . . . . 90 . 196 Core Remaining (%) 77 | 100 . . . 20 76 . 96 96 . . . . 74 . . . . 67 68 81 93 Volleys Fired 697 | 6 45 1 . . 44 . 21 19 20 . 47 . 42 52 9 2 13 15 99 71 191 Largest 3 | 2 2 2 . . 3 . 3 3 3 . 3 . 3 3 3 3 3 3 3 3 3 Hottest 308 | 100 103 103 . . 204 . 185 125 125 . 270 . 188 264 254 218 183 191 264 289 308 Shots Fired 1704 | 12 87 2 . . 132 . 61 36 60 . 139 . 121 155 29 7 32 33 210 112 476 Gun 832 | 12 9 . . . 122 . . . . . 18 . 32 42 19 5 15 27 180 41 310 Cannon 844 | . 78 2 . . 8 . 58 33 60 . 116 . 89 113 10 2 17 . 21 71 166 Launcher 28 | . . . . . 2 . 3 3 . . 5 . . . . . . 6 9 . . Special . | . . . . . . . . . . . . . . . . . . . . . . Kinetic 347 | . 65 1 . . 122 . . . . . 38 . 21 . . . . 11 22 . 67 Thermal 1201 | 12 22 1 . . 8 . 58 33 60 . 96 . 98 78 22 . 13 16 163 112 409 Explosive 28 | . . . . . 2 . 3 3 . . 5 . . . . . . 6 9 . . Electromagnetic 128 | . . . . . . . . . . . . . 2 77 7 7 19 . 16 . . Robot Hit Streak 67 | 4 9 11 . . 14 . 16 15 10 . 16 . 9 14 7 12 16 25 28 14 67 Robot Miss Streak 5 | 2 5 . . . 3 . 1 1 2 . 3 . 4 3 2 . 1 1 2 2 3 Penetration Max 1 | . . . . . . . . . . . 1 . . . . . . . 1 . . Secondary Targets 4 | . . . . . . . . . . . . . . . . . . 1 1 . 2 Max Gunslinging Chain 1 | . . . . . . . . . . . . . . . . . . 1 1 . 1 Shots Hit Robots 1097 | 7 54 2 6 . 88 . 41 20 41 . 93 7 66 105 20 6 18 22 187 18 296 Core Hits 476 | 5 17 . . . 35 . 24 12 17 . 54 3 23 41 7 2 4 25 76 4 127 Critical Hits 21 | . 1 . . . 2 . 2 . 1 . 10 . 1 1 . . . . . . 3 Critical Kills 9 | . 1 . . . 2 . . . 1 . 3 . . 1 . . . . . . 1 Critical Parts Destroyed 11 | . . . . . . . 2 . . . 7 . 1 . . . . . . . 1 Melee Attacks 141 | . 7 . 6 . . 2 . 13 24 . . 7 . 8 . . 12 . 62 . . Impact 4 | . . . . . . 2 . 2 . . . . . . . . . . . . . Slashing 124 | . . . . . . . . 11 24 . . 7 . 8 . . 12 . 62 . . Piercing . | . . . . . . . . . . . . . . . . . . . . . . Sneak Attacks 17 | . 5 . 6 . . . . 1 1 . . . . . . . . . 4 . . Combat Hostiles . | . . . . . . . . . . . . . . . . . . . . . . Follow-up Attacks . | . . . . . . . . . . . . . . . . . . . . . . Damage Inflicted 35975 | 112 958 . . . 1378 . 1295 903 1425 . 3801 865 1690 3327 511 140 337 1882 7199 463 9689 Guns 13906 | 112 63 . . . 1172 . . . . . 201 . 538 651 281 67 174 459 3919 302 5967 Cannons 14594 | . 831 . . . 121 . 942 478 1268 . 2466 . 1152 2564 230 73 140 . 623 161 3545 Explosions 4854 | . 64 . . . 73 . 326 326 . . 1134 . . . . . . 1423 1394 . 114 Melee 2378 | . . . . . . . . 99 132 . . 865 . 47 . . . . 1235 . . Ramming 243 | . . . . . 12 . 27 . 25 . . . . 65 . . 23 . 28 . 63 Kinetic 4328 | . 625 . . . 1172 . . . . . 483 . 360 . . . . 197 464 . 1027 Thermal 21875 | 112 269 . . . 121 . 942 478 1268 . 2184 . 1301 1508 395 . 106 262 3867 463 8599 Explosive 4700 | . 64 . . . 33 . 326 326 . . 1134 . . . . . . 1423 1394 . . Electromagnetic 2451 | . . . . . 40 . . . . . . . 29 1707 116 140 208 . 211 . . Impact . | . . . . . . . . . . . . . . . . . . . . . . Slashing 2378 | . . . . . . . . 99 132 . . 865 . 47 . . . . 1235 . . Piercing . | . . . . . . . . . . . . . . . . . . . . . . Highest Corruption 38 | . . . . . . . 1 1 2 2 2 2 5 5 5 5 7 . 38 13 19 Average Corruption 7 | . . . . . . . 1 1 1 2 2 2 4 4 5 5 5 . 24 11 7 Corruption Purged . | . . . . . . . . . . . . . . . . . . . . . . Effects 493 | . . . . . . . 1 3 1 3 20 4 35 34 26 14 1 . 180 14 157 Message Errors 82 | . . . . . . . . 2 1 . 4 2 9 4 5 4 . . 25 6 20 Matter Fused 82 | . . . . . . . . . . . . . 9 8 3 3 . . 24 1 34 Heat Flow Errors 46 | . . . . . . . . . . 3 2 . 1 5 4 3 . . 14 1 13 Energy Discharges 48 | . . . . . . . 1 . . . 4 1 6 4 2 2 . . 10 2 16 Parts Rejected 5 | . . . . . . . . . . . . . . 1 . . . . 1 . 3 Data Loss (minor) 49 | . . . . . . . . 1 . . 2 1 3 3 5 1 1 . 12 2 18 Data Loss (major) 9 | . . . . . . . . . . . . . 1 . 2 . . . 4 . 2 Misfires 12 | . . . . . . . . . . . . . 2 1 2 1 . . 4 . 2 Alerts 3 | . . . . . . . . . . . . . . . . . . . 1 . 2 Misdirections 15 | . . . . . . . . . . . . . . . . . . . 14 . 1 Targeting Errors 117 | . . . . . . . . . . . 7 . 4 6 3 . . . 61 2 34 Weapon Failures 25 | . . . . . . . . . . . 1 . . 2 . . . . 10 . 12 Overload Shots 21 | . . . . . . . . 4 . . 10 . . . . . 3 . 4 . . Effects 3 | . . . . . . . . 2 . . 1 . . . . . . . . . . Short Circuit 1 | . . . . . . . . . . . 1 . . . . . . . . . . Meltdown 2 | . . . . . . . . 2 . . . . . . . . . . . . . Overflow Damage 1598 | . 105 . . . . . 52 85 60 . 97 431 50 124 3 . . 113 358 . 120 Projectiles 380 | . 25 . . . . . 7 4 1 . 52 . 50 79 3 . . . 40 . 119 Explosions 447 | . 80 . . . . . 45 12 . . 45 . . 45 . . . 113 107 . . Melee 771 | . . . . . . . . 69 59 . . 431 . . . . . . 211 . 1 Knockbacks 14 | . 8 . . . . . . . 1 . 1 . . 1 . . 1 . . . 2 Impact 5 | . . . . . . . . . 1 . . . . 1 . . 1 . . . 2 Kinetic 9 | . 8 . . . . . . . . . 1 . . . . . . . . . . Secondary . | . . . . . . . . . . . . . . . . . . . . . . Self-Inflicted Damage 485 | . 136 . . . 52 . . . . . 62 . . 70 . . . 47 88 . 30 Shots 11 | . 2 . . . 3 . . . . . 1 . . 1 . . . 1 2 . 1 Rammed 15 | . . . . . 1 . 1 . 1 . . . . 4 . . 1 . 3 . 4 Targets Rammed 19 | . . . . . 2 . 1 . 1 . . . . 6 . . 1 . 3 . 5 Kicked . | . . . . . . . . . . . . . . . . . . . . . . Crushed 4 | . . . . . 1 . . . . . . . . 2 . . . . . . 1 Highest Temperature 423 | 234 327 42 . . 192 . 30 . . 109 189 . 103 362 231 204 . 78 423 342 308 Average Temperature 86 | 116 104 22 . . 33 . 13 . . 70 45 . 38 133 99 92 . 28 84 93 66 Received Heat Transfer 2772 | . 453 . . . 351 . 150 99 162 . 413 . 105 231 14 7 57 69 423 29 209 Effects 6 | . . . . . . . . . . . . . . 2 . . . . 1 3 . Energy Bleed 2 | . . . . . . . . . . . . . . 1 . . . . 1 . . Interference 3 | . . . . . . . . . . . . . . . . . . . . 3 . Matter Decay 1 | . . . . . . . . . . . . . . 1 . . . . . . . Siege Activations 14 | . . . . . . . . . . . . . . 1 . . . . 1 . 12 Total Turns 341 | . . . . . . . . . . . . . . 2 . . . . 44 . 295 Longest Duration 51 | . . . . . . . . . . . . . . 2 . . . . 44 . 51 Robots Corrupted 6 | . . . . . . . . . . . . . . 6 . . . . . . . Combat Hostiles 5 | . . . . . . . . . . . . . . 5 . . . . . . . Parts Fried 36 | . 2 . . . . . . . . . . . . 29 2 1 . . 2 . . Impact Corruptions 1 | . . . . . . . . . . . . . . . . . . . . . 1 Robots Melted 14 | . . . . . . . . . 1 . 2 . 1 3 1 . . . 5 . 1 Combat Hostiles 14 | . . . . . . . . . 1 . 2 . 1 3 1 . . . 5 . 1 Parts Melted 98 | . . . . . . . 1 1 5 . 3 . 7 13 2 . . . 37 2 27 Heat Transferred 27729 | 333 555 . . . 222 . 1443 629 1480 . 3010 . 1730 2080 620 . 148 444 5396 555 9084 Parts Sabotaged . | . . . . . . . . . . . . . . . . . . . . . . Parts Stolen . | . . . . . . . . . . . . . . . . . . . . . . Parts Stripped . | . . . . . . . . . . . . . . . . . . . . . . Power Chain Reactions . | . . . . . . . . . . . . . . . . . . . . . . Missiles Intercepted . | . . . . . . . . . . . . . . . . . . . . . . Alert | -11 -10 -10 -10 -9 -8 -7 -7 -6 -5 -5 -5 -5 -4 -4 -4 -4 -4 -3 -3 -2 -1 ------- Run | Scr Mat Min Exi Min Mat Fac Sto Fac Fac Upp Upp Zhi Pro Fac Upp Upp War Pro Res Res Acc Peak Influence 1172 | 20 160 18 . 7 260 102 235 231 144 . . . . 301 . . . . 231 178 1172 Average Influence 164 | 7 73 11 . . 110 42 147 66 60 . . . . 82 . . . . 100 39 490 Maximum Alert Level 4 | . . . . . 1 . 1 1 . . . . . 1 . . . . 1 . 4 Low Security (%) 75 | . . . . . . . . . . . . . . . . . . . . . . Level 1 12 | . . . . . . . . . . . . . . . . . . . . . . Level 2 5 | . . . . . . . . . . . . . . . . . . . . . . Level 3 4 | . . . . . . . . . . . . . . . . . . . . . . Level 4 1 | . . . . . . . . . . . . . . . . . . . . . . Level 5 . | . . . . . . . . . . . . . . . . . . . . . . High Security . | . . . . . . . . . . . . . . . . . . . . . . Max Security . | . . . . . . . . . . . . . . . . . . . . . . Squads Dispatched 63 | . 4 . . . 4 . 4 6 7 . 1 . . 6 . . . . 10 2 19 Investigation 11 | . 4 . . . . . 2 . 1 . . . . 1 . . . . 1 2 . Extermination 22 | . . . . . . . . 2 3 . . . . 4 . . . . 6 . 7 Reinforcement 15 | . . . . . 1 . 2 1 3 . . . . 1 . . . . 3 . 4 Assault 3 | . . . . . . . . . . . 1 . . . . . . . . . 2 Garrison 12 | . . . . . 3 . . 3 . . . . . . . . . . . . 6 Intercept . | . . . . . . . . . . . . . . . . . . . . . . Construction Impeded 7 | . . . . . . . 1 . 1 . . . . 1 . . . . 2 . 2 Haulers Reinforced 2 | . . . . . . . 1 . . . . . . . . . . . . . 1 Stealth | -11 -10 -10 -10 -9 -8 -7 -7 -6 -5 -5 -5 -5 -4 -4 -4 -4 -4 -3 -3 -2 -1 --------- Run | Scr Mat Min Exi Min Mat Fac Sto Fac Fac Upp Upp Zhi Pro Fac Upp Upp War Pro Res Res Acc Distress Signals 30 | . 2 . . . 3 . 3 . . . . . . 4 . . . . 3 11 4 Communications Jammed 71 | . . . . . . . . . . . . . . . . . . . 45 . 26 Distress Signals 71 | . . . . . . . . . . . . . . . . . . . 45 . 26 Times Spotted 345 | . 21 2 . . 25 . 22 11 12 . 31 . 10 33 3 1 24 13 41 25 71 Peak Tracking Total 18 | . 3 2 . . 4 . 6 3 3 . 14 . 3 6 2 1 12 5 7 18 9 Tactical Retreats 35 | . 4 . . . 5 . 3 . . . 6 . 1 1 . . 5 . 1 4 5 Traps | -11 -10 -10 -10 -9 -8 -7 -7 -6 -5 -5 -5 -5 -4 -4 -4 -4 -4 -3 -3 -2 -1 ------- Run | Scr Mat Min Exi Min Mat Fac Sto Fac Fac Upp Upp Zhi Pro Fac Upp Upp War Pro Res Res Acc Traps Triggered 11 | . 2 . . . . . 1 . 1 . . . . 1 . . . . 2 . 4 Indirectly . | . . . . . . . . . . . . . . . . . . . . . . Trap Hack Attempts 20 | . 20 . . . . . . . . . . . . . . . . . . . . Triggered . | . . . . . . . . . . . . . . . . . . . . . . Disarmed 1 | . 1 . . . . . . . . . . . . . . . . . . . . Reprogrammed 3 | . 3 . . . . . . . . . . . . . . . . . . . . Reused 4 | . 2 . . . 2 . . . . . . . . . . . . . . . . Traps Extracted . | . . . . . . . . . . . . . . . . . . . . . . Installed 3 | . . . . . 3 . . . . . . . . . . . . . . . . Triggered 27 | . 2 . . . 2 . . . . . . . . . 6 . 15 2 . . . Machines | -11 -10 -10 -10 -9 -8 -7 -7 -6 -5 -5 -5 -5 -4 -4 -4 -4 -4 -3 -3 -2 -1 ---------- Run | Scr Mat Min Exi Min Mat Fac Sto Fac Fac Upp Upp Zhi Pro Fac Upp Upp War Pro Res Res Acc Machines Disabled 24 | . 3 . . . 2 . 3 1 . . 2 . . 2 . . 3 . 1 . 7 Max in Single Turn 2 | . 2 . . . 1 . 1 1 . . 1 . . 2 . . 1 . 1 . 1 Garrison Access 3 | . . . . . . 1 1 . . . . . . . . . . . . 1 . Energy Cycler 1 | . . . . . . . . . . . . . . . . . . . . . 1 Machines Sabotaged . | . . . . . . . . . . . . . . . . . . . . . . Garrisons Compromised . | . . . . . . . . . . . . . . . . . . . . . . Overloaded Fab Kills . | . . . . . . . . . . . . . . . . . . . . . . Fab Network Shutdowns . | . . . . . . . . . . . . . . . . . . . . . . Hacking | -11 -10 -10 -10 -9 -8 -7 -7 -6 -5 -5 -5 -5 -4 -4 -4 -4 -4 -3 -3 -2 -1 --------- Run | Scr Mat Min Exi Min Mat Fac Sto Fac Fac Upp Upp Zhi Pro Fac Upp Upp War Pro Res Res Acc Machines Accessed 63 | . 7 . 1 1 3 6 7 4 4 . . 9 . 3 . . 3 . 4 3 8 Terminals 32 | . 7 . . 1 1 1 6 2 3 . . . . 1 . . . . 2 1 7 Fabricators 4 | . . . . . . 2 . 1 . . . . . . . . . . 1 . . Repair Stations 4 | . . . . . . 2 . . . . . . . 1 . . . . . . 1 Recycling Units . | . . . . . . . . . . . . . . . . . . . . . . Scanalyzers 6 | . . . . . 2 . . . 1 . . . . 1 . . . . 1 1 . Garrison Access 4 | . . . . . . 1 1 1 . . . . . . . . . . . 1 . Total Hacks 181 | . 27 . 1 3 9 14 13 8 12 . . 48 . 6 . . 6 . 9 7 18 Successful 127 | . 19 . 1 2 7 8 10 2 6 . . 48 . 4 . . 6 . 2 4 8 Failed 54 | . 8 . . 1 2 6 3 6 6 . . . . 2 . . . . 7 3 10 Catastrophic 7 | . 1 . . . . . 1 1 1 . . . . . . . . . 1 . 2 Database Lockouts . | . . . . . . . . . . . . . . . . . . . . . . Manual 46 | . 18 . 1 3 . 2 7 2 3 . . . . 2 . . . . . . 8 Terminals 87 | . 27 . . 3 3 4 12 4 10 . . . . 2 . . . . 3 3 16 Fabricators 8 | . . . . . . 3 . 2 . . . . . . . . . . 3 . . Repair Stations 8 | . . . . . . 4 . . . . . . . 2 . . . . . . 2 Recycling Units . | . . . . . . . . . . . . . . . . . . . . . . Scanalyzers 15 | . . . . . 6 . . . 2 . . . . 2 . . . . 3 2 . Garrison Access 8 | . . . . . . 3 1 2 . . . . . . . . . . . 2 . Terminal Hacks 89 | . 10 . 1 2 2 2 6 2 3 . . 48 . . . . 6 . . 2 5 Record 41 | . . . . . . . . . . . . 36 . . . . . . . 2 3 Part Schematic 7 | . 1 . . 2 . . . . . . . 4 . . . . . . . . . Robot Analysis 6 | . . . . . . 1 . 1 . . . 4 . . . . . . . . . Prototype ID Bank 9 | . 1 . . . . . . . . . . 4 . . . . 4 . . . . Open Door 5 | . . . . . . . 1 . . . . . . . . . 2 . . . 2 Level Access Points 1 | . . . . . . . 1 . . . . . . . . . . . . . . Branch Access Points 2 | . 1 . . . . . . . 1 . . . . . . . . . . . . Emergency Access Points 1 | . 1 . . . . . . . . . . . . . . . . . . . . Alert Level 3 | . . . . . 1 . 1 1 . . . . . . . . . . . . . Unreport Threat 1 | . . . . . . . 1 . . . . . . . . . . . . . . Locate Traps 5 | . 1 . . . 1 1 1 . 1 . . . . . . . . . . . . Recall Investigation 1 | . 1 . . . . . . . . . . . . . . . . . . . . Recall Reinforcements 1 | . . . . . . . 1 . . . . . . . . . . . . . . Registered Components 1 | . 1 . . . . . . . . . . . . . . . . . . . . Zone Layout 4 | . 3 . . . . . . . 1 . . . . . . . . . . . . EX-Prototype ID Bank 1 | . . . 1 . . . . . . . . . . . . . . . . . . Fabricator Hacks 3 | . . . . . . 3 . . . . . . . . . . . . . . . Load Schematic 1 | . . . . . . 1 . . . . . . . . . . . . . . . Build 2 | . . . . . . 2 . . . . . . . . . . . . . . . Repair Station Hacks 3 | . . . . . . . . . . . . . . 2 . . . . . . 1 Scan Component 2 | . . . . . . . . . . . . . . 1 . . . . . . 1 Repair 1 | . . . . . . . . . . . . . . 1 . . . . . . . Recycling Unit Hacks . | . . . . . . . . . . . . . . . . . . . . . . Scanalyzer 11 | . . . . . 5 . . . 2 . . . . 1 . . . . 2 1 . Insert Component 7 | . . . . . 3 . . . 1 . . . . 1 . . . . 1 1 . Analyze 4 | . . . . . 2 . . . 1 . . . . . . . . . 1 . . Garrison Access Hacks 4 | . . . . . . 2 1 . . . . . . . . . . . . 1 . Unlock Access 1 | . . . . . . 1 . . . . . . . . . . . . . . . Seal Access 3 | . . . . . . 1 1 . . . . . . . . . . . . 1 . Unauthorized Hacks 44 | . 19 . . . . 3 6 2 3 . . . . 3 . . . . . . 8 Terminals 17 | . 9 . . . . 1 3 . 1 . . . . 1 . . . . . . 2 Track 5 | . 5 . . . . . . . . . . . . . . . . . . . . Botnet 11 | . 3 . . . . 1 3 . 1 . . . . 1 . . . . . . 2 Disrupt 1 | . 1 . . . . . . . . . . . . . . . . . . . . Fabricators . | . . . . . . . . . . . . . . . . . . . . . . Repair Stations . | . . . . . . . . . . . . . . . . . . . . . . Recycling Units . | . . . . . . . . . . . . . . . . . . . . . . Scanalyzers . | . . . . . . . . . . . . . . . . . . . . . . Garrison Access . | . . . . . . . . . . . . . . . . . . . . . . Data Cores Recovered 1 | . 1 . . . . . . . . . . . . . . . . . . . . Used 1 | . 1 . . . . . . . . . . . . . . . . . . . . Hacking Detections 47 | . 7 . . 1 3 4 6 4 4 . . . . 3 . . . . 4 3 8 Full Trace Events 6 | . 2 . . . . . 1 . 1 . . . . . . . . . 1 1 . Feedback Events 1 | . . . . . . . 1 . . . . . . . . . . . . . . Corruption 1 | . . . . . . . 1 . . . . . . . . . . . . . . Feedback Blocked . | . . . . . . . . . . . . . . . . . . . . . . Robot Schematics Acquired . | . . . . . . . . . . . . . . . . . . . . . . Robots Built . | . . . . . . . . . . . . . . . . . . . . . . Matter . | . . . . . . . . . . . . . . . . . . . . . . Time . | . . . . . . . . . . . . . . . . . . . . . . Total Robot Build Rating . | . . . . . . . . . . . . . . . . . . . . . . Part Schematics Acquired 9 | . 1 . . 2 1 . . . . . . 4 . . . . . . 1 . . Parts Built 3 | . . . . . . 3 . . . . . . . . . . . . . . . Matter 336 | . . . . . . 336 . . . . . . . . . . . . . . . Time 109 | . . . . . . 109 . . . . . . . . . . . . . . . Total Part Build Rating 15 | . . . . . . 15 . . . . . . . . . . . . . . . Parts Repaired 1 | . . . . . . . . . . . . . . 1 . . . . . . . Time 35 | . . . . . . . . . . . . . . 35 . . . . . . . Parts Recycled . | . . . . . . . . . . . . . . . . . . . . . . Recycled Matter . | . . . . . . . . . . . . . . . . . . . . . . Retrieved Matter . | . . . . . . . . . . . . . . . . . . . . . . Retrieved Components . | . . . . . . . . . . . . . . . . . . . . . . Parts Scanalyzed 6 | . . . . . 3 . . . 1 . . . . 1 . . . . 1 . . Part Schematics Acquired 2 | . . . . . 1 . . . . . . . . . . . . . 1 . . Parts Damaged . | . . . . . . . . . . . . . . . . . . . . . . Bothacking | -11 -10 -10 -10 -9 -8 -7 -7 -6 -5 -5 -5 -5 -4 -4 -4 -4 -4 -3 -3 -2 -1 ------------ Run | Scr Mat Min Exi Min Mat Fac Sto Fac Fac Upp Upp Zhi Pro Fac Upp Upp War Pro Res Res Acc Used RIF Installer . | . . . . . . . . . . . . . . . . . . . . . . Robots Hacked 11 | . 5 . 6 . . . . . . . . . . . . . . . . . . Non-combat 7 | . 4 . 3 . . . . . . . . . . . . . . . . . . Combat 4 | . 1 . 3 . . . . . . . . . . . . . . . . . . Robot Hacks Applied 12 | . 6 . 6 . . . . . . . . . . . . . . . . . . parse_system 9 | . 3 . 6 . . . . . . . . . . . . . . . . . . no_distress 2 | . 2 . . . . . . . . . . . . . . . . . . . . find_recycling 1 | . 1 . . . . . . . . . . . . . . . . . . . . Relay Couplers Released 6 | . . . . . . . . . . . . . . . . . . . . 6 . Programmers 6 | . . . . . . . . . . . . . . . . . . . . 6 . Robots Rewired 6 | . . . . . . . . . . . 2 . . . . . 4 . . . . Allies Hacked . | . . . . . . . . . . . . . . . . . . . . . . Hacks Repelled . | . . . . . . . . . . . . . . . . . . . . . . Allies | -11 -10 -10 -10 -9 -8 -7 -7 -6 -5 -5 -5 -5 -4 -4 -4 -4 -4 -3 -3 -2 -1 -------- Run | Scr Mat Min Exi Min Mat Fac Sto Fac Fac Upp Upp Zhi Pro Fac Upp Upp War Pro Res Res Acc Total Allies 10 | . . . . . . . 4 . . . 2 . . . . . 4 . . . . Largest Group 4 | . . . . . . . 2 2 . . 2 . . . . . 4 . . . . Highest-Rated Group 204 | . . . . . . . 131 131 . . 60 . . . . . 204 . . . . Highest-Rated Ally 99 | . . . . . . . 99 99 . . 30 . . . . . 60 . . . . Total Orders 9 | . . . . . . . 4 2 1 . . . . 1 1 . . . . . . EXPLORE 8 | . . . . . . . 4 1 1 . . . . 1 1 . . . . . . RETURN 1 | . . . . . . . . 1 . . . . . . . . . . . . . Ally Attacks 57 | . . . . . . . 39 . . . 10 . . . . . 8 . . . . Total Damage 1958 | . . . . . . . 1329 . . . 367 . . . . . 262 . . . . Kills 14 | . . . . . . . 10 . . . 1 . . . . . 3 . . . . Allies Corrupted . | . . . . . . . . . . . . . . . . . . . . . . Allies Melted . | . . . . . . . . . . . . . . . . . . . . . . Intel | -11 -10 -10 -10 -9 -8 -7 -7 -6 -5 -5 -5 -5 -4 -4 -4 -4 -4 -3 -3 -2 -1 ------- Run | Scr Mat Min Exi Min Mat Fac Sto Fac Fac Upp Upp Zhi Pro Fac Upp Upp War Pro Res Res Acc Robot Analysis Total 6 | . . . . . . 1 . 1 . . . 4 . . . . . . . . . Derelict Logs Recovered 9 | . . . . . . . . . . 1 2 . 2 . 2 2 . . . . . Drone Launches 9 | . . . . . . . 4 2 . . . . . 3 . . . . . . . Drone Recoveries . | . . . . . . . . . . . . . . . . . . . . . . Exploration | -11 -10 -10 -10 -9 -8 -7 -7 -6 -5 -5 -5 -5 -4 -4 -4 -4 -4 -3 -3 -2 -1 ------------- Run | Scr Mat Min Exi Min Mat Fac Sto Fac Fac Upp Upp Zhi Pro Fac Upp Upp War Pro Res Res Acc Turns Passed 24470 | 108 1353 293 299 67 1265 838 938 1376 1047 508 1356 419 1331 1729 831 533 1421 465 2395 2216 3682 Spaces Moved 11324 | 77 757 174 257 51 546 369 402 581 416 298 662 217 621 623 437 293 714 229 914 967 1719 Core 8 | 8 . . . . . . . . . . . . . . . . . . . . . Treads 10005 | . 233 90 . . 465 369 402 581 416 298 662 217 621 623 437 293 714 212 686 967 1719 Legs . | . . . . . . . . . . . . . . . . . . . . . . Wheels 1311 | 69 524 84 257 51 81 . . . . . . . . . . . . 17 228 . . Hover . | . . . . . . . . . . . . . . . . . . . . . . Flight . | . . . . . . . . . . . . . . . . . . . . . . Fastest Speed 50 | 50 90 110 110 120 140 165 165 165 165 170 170 173 173 178 178 178 178 170 160 172 145 Average Speed 165 | 87 120 145 110 129 175 180 165 170 169 170 173 173 177 178 178 178 178 174 175 179 155 Slowest Speed 250 | 100 180 180 120 140 220 200 165 185 185 170 185 225 178 178 178 178 205 178 250 183 177 Overloaded Moves . | . . . . . . . . . . . . . . . . . . . . . . Propulsion Burnouts . | . . . . . . . . . . . . . . . . . . . . . . Robots Hopped . | . . . . . . . . . . . . . . . . . . . . . . Cave-ins Triggered 7 | . . . . . . . . . . . . . . 1 . . . . . 6 . Teleports 1 | . . . . . . . . . . . . . . . . . . . 1 . . Time Travels 1 | . . . . . . . . . . . . . . . . . . . . 1 . Exploration Rate (%) 46 | 4 94 49 68 20 35 7 80 22 16 53 81 62 72 15 74 48 78 52 27 45 31 Regions Visited 21 Branch Regions 12 Pre-discovered Areas 4 | . . . . . . . . . . . . 3 . . . 1 . . . . . Known Exits Taken 6 | . 1 . . . . . 1 . 1 1 . . 1 . . . . 1 . . . Unknown Exits Taken 15 | 1 . 1 1 1 1 1 . 1 . . 1 1 . 1 1 1 1 . 1 1 . Scrap Searched 16 | . . 1 . 1 . . . . . 1 4 . 2 . 4 2 . 1 . . . Spaces Dug 269 | . . . . . 7 2 . 16 20 . . . 5 9 . . 12 17 32 88 61 Terrain Destroyed 710 | . 51 . . . 12 2 33 28 24 . 94 . 22 23 3 . 13 85 106 91 123 Melee 82 | . . . . . . 2 . 11 20 . . . . 7 . . 10 . 32 . . Projectile 288 | . . . . . . . 11 8 4 . 29 . 22 7 3 . 3 7 2 91 101 AOE 340 | . 51 . . . 12 . 22 9 . . 65 . . 9 . . . 78 72 . 22 Actions | -11 -10 -10 -10 -9 -8 -7 -7 -6 -5 -5 -5 -5 -4 -4 -4 -4 -4 -3 -3 -2 -1 --------- Run | Scr Mat Min Exi Min Mat Fac Sto Fac Fac Upp Upp Zhi Pro Fac Upp Upp War Pro Res Res Acc Total 15413 | 102 1100 212 266 51 783 538 633 914 667 300 757 249 758 1100 473 303 820 266 1427 1348 2346 Wait 2395 | 2 212 24 . . 121 138 186 266 181 1 2 . 77 324 14 . 29 . 224 241 353 Move 11299 | 76 756 173 256 50 545 368 401 580 415 297 661 216 620 621 436 292 713 228 913 964 1718 Hop . | . . . . . . . . . . . . . . . . . . . . . . Pick Up 179 | 8 22 6 1 . 18 10 2 7 2 1 7 4 5 24 4 3 2 2 22 11 18 Fast Attach 121 | 7 3 2 . . 5 3 3 3 6 . 1 5 2 10 . 1 6 1 27 17 19 Attach 117 | . 6 1 2 . 5 3 . 2 1 . 9 3 10 13 1 . 1 15 31 5 9 Detach 54 | . . . . . 2 2 . 2 3 . . 3 1 6 . 1 . 4 17 5 8 Swap 144 | 1 15 . 1 1 11 6 7 12 8 . 11 4 1 24 5 . 6 1 15 8 7 Drop 165 | 2 14 5 . . 27 6 10 9 4 1 . 7 . 10 4 4 8 . 12 24 18 Fire 697 | 6 45 1 . . 44 . 21 19 20 . 47 . 42 52 9 2 13 15 99 71 191 Melee 141 | . 7 . 6 . . 2 . 13 24 . . 7 . 8 . . 12 . 62 . . Ram . | . . . . . . . . . . . . . . . . . . . . . . Kick . | . . . . . . . . . . . . . . . . . . . . . . Crush 19 | . . . . . 2 . 1 . 1 . . . . 6 . . 1 . 3 . 5 Escape Stasis 7 | . . . . . . . . . 2 . . . . 1 . . . . 2 2 . Rewire 48 | . . . . . . . . . . . 19 . . . . . 29 . . . . Trap 23 | . 20 . . . 3 . . . . . . . . . . . . . . . . Miscellaneous 4 | . . . . . . . 2 1 . . . . . 1 . . . . . . . Route ------- -11/Scrapyard -10/Materials (discovered 4 exits: [*Mat x2] / *Min x2) -10/Mines (discovered 2 exits: [*Mat] / *Exi) -10/Exiles -9/Mines -8/Materials -7/Factory -7/Storage -6/Factory -5/Factory (discovered 2 exits: *Upp x2) -5/Upper Caves -5/Upper Caves (discovered 2 exits: Fac / *Zhi) -5/Zhirov -4/Proximity Caves -4/Factory -4/Upper Caves -4/Upper Caves (discovered 2 exits: *Res / *War) -4/Warlord -3/Proximity Caves -3/Research (discovered 2 exits: *Res / Qua) -2/Research -1/Access To Epsilon Eridani History --------- Turn | Location | Event 27 | -11/Scrapyard | Discovered new exit (range 16) 109 | -11/Scrapyard | Entered Materials 109 | -10/Materials | Discovered new exit (range 8) 318 | -10/Materials | Build established: Mutant 668 | -10/Materials | Core integrity fell below 50% 853 | -10/Materials | Discovered new exit (range 13) 1034 | -10/Materials | Lost 4 parts (1p2n1w) 1237 | -10/Materials | Discovered new exit (range 13) 1246 | -10/Materials | Identified exit to Mines 1462 | -10/Materials | Entered Mines 1595 | -10/Mines | Discovered new exit (range 10) 1603 | -10/Mines | Assembled infested the area 1620 | -10/Mines | Met 8R-AWN 1683 | -10/Mines | Lost 5 parts (1p2n2w) 1701 | -10/Mines | Found a hidden stash of uninstalled traps 1749 | -10/Mines | Discovered new exit (range 5) 1755 | -10/Mines | Entered Exiles 1782 | -10/Exiles | Welcomed by 8R-AWN 1801 | -10/Exiles | Met EX-HEX 1869 | -10/Exiles | Met EX-BIN 1884 | -10/Exiles | Aligned with FarCom system 1885 | -10/Exiles | Given EX-Vault access code 1911 | -10/Exiles | Opened EX-Vault 1918 | -10/Exiles | Found Chronowheel 1940 | -10/Exiles | Warned to stay clear of 0b10 Research branches 1972 | -10/Exiles | Met EX-DEC 2042 | -10/Exiles | Discovered new exit (range 10) 2054 | -10/Exiles | Left Exiles lab with Chronowheel 2054 | -10/Exiles | Entered Mines 2094 | -9/Mines | Met a Derelict bent on vengeance 2102 | -9/Mines | Discovered new exit (range 10) 2121 | -9/Mines | Entered Materials 2121 | -8/Materials | Evolved 4 slots: Utility x3, Weapon x1 2414 | -8/Materials | Build established: Scavenger-Tank 2540 | -8/Materials | Garrison activated, responded to threat 3265 | -8/Materials | Discovered new exit (range 4) 3386 | -8/Materials | Entered Factory 3386 | -7/Factory | Evolved 2 slots: Utility x2 3809 | -7/Factory | Fabricated Adv. Medium Treads (x2) 3823 | -7/Factory | Build established: Scavenger-Skirmisher 4029 | -7/Factory | Fabricated Lrg. Storage Unit (x1) 4150 | -7/Factory | Identified exit to Garrison 4178 | -7/Factory | Discovered new exit (range 7) 4224 | -7/Factory | Entered Storage 4403 | -7/Storage | Build established: Hauler-Tank 4660 | -7/Storage | Identified exit to Factory 4660 | -7/Storage | Met 01-MTF 5162 | -7/Storage | Entered Factory 5162 | -6/Factory | Accompanied by 2 allies 5162 | -6/Factory | Evolved 2 slots: Utility x2 5167 | -6/Factory | 01-MTF left 5568 | -6/Factory | Garrison activated, responded to threat 6373 | -6/Factory | Discovered new exit (range 52) 6538 | -6/Factory | Entered another Factory area 6538 | -5/Factory | Accompanied by 2 allies 6538 | -5/Factory | Evolved 2 slots: Propulsion x1, Utility x1 6669 | -5/Factory | Build established: Hauler-Assassin 7007 | -5/Factory | Build established: Hauler-Mutant 7462 | -5/Factory | Identified exit to Upper Caves 7585 | -5/Factory | Entered Upper Caves 7871 | -5/Upper Caves | Build established: Hauler-Tank 7896 | -5/Upper Caves | Identified exit to Upper Caves 8093 | -5/Upper Caves | Entered another Upper Caves area 8126 | -5/Upper Caves | Attracted the attention of an 0b10 outpost 8188 | -5/Upper Caves | Destroyed 9 combat bots 8189 | -5/Upper Caves | Lost 4 parts (2n1u1w) 8837 | -5/Upper Caves | Learned Factory terminal intel 8863 | -5/Upper Caves | Identified exit to Factory 9151 | -5/Upper Caves | Attracted the attention of an 0b10 checkpoint 9425 | -5/Upper Caves | Discovered new exit (range 6) 9449 | -5/Upper Caves | Entered Zhirov 9449 | -5/Zhirov | Discovered new exit (range 3) 9481 | -5/Zhirov | Met Zhirov 9519 | -5/Zhirov | Learned location of Quarantine (-3) 9519 | -5/Zhirov | Learned location of Testing (-2) 9519 | -5/Zhirov | Learned location of Command (-1) 9548 | -5/Zhirov | Zhirov requested help retrieving the SGEMP Prototype 9583 | -5/Zhirov | Found Alien Artifact 9583 | -5/Zhirov | Identified Integrated Reactor 9583 | -5/Zhirov | Installed Integrated Reactor, increased core energy generation (+2%) 9608 | -5/Zhirov | Found Alien Artifact 9868 | -5/Zhirov | Entered Proximity Caves 9952 | -4/Proximity Caves | Lost 3 parts (1u2w) 10094 | -4/Proximity Caves | Spotted B-86 Titan 10147 | -4/Proximity Caves | Lost 5 parts (1n1u3w) 10425 | -4/Proximity Caves | Learned 4 Research zone layouts 11039 | -4/Proximity Caves | Learned Research emergency access door positions 11169 | -4/Proximity Caves | Attracted the attention of an 0b10 checkpoint 11177 | -4/Proximity Caves | Discovered exit to Factory (range 8) 11199 | -4/Proximity Caves | Entered Factory 11199 | -4/Factory | Evolved 2 slots: Power x1, Propulsion x1 11200 | -4/Factory | Loaded intel: 20 terminal locations 11945 | -4/Factory | Crushed by falling debris 12288 | -4/Factory | Repaired Cld. Particle Cannon 12357 | -4/Factory | Lost 6 parts (2n4u) 12580 | -4/Factory | Build established: Hauler-Skirmisher 12706 | -4/Factory | Lost 3 parts (1n2u) 12878 | -4/Factory | Discovered new exit (range 29) 12928 | -4/Factory | Entered Upper Caves 12928 | -4/Upper Caves | Accompanied by 1 ally 13213 | -4/Upper Caves | Build established: Hauler-Tank 13370 | -4/Upper Caves | Spotted B-86 Titan 13475 | -4/Upper Caves | Learned location of 1 exit from Proximity Caves 13643 | -4/Upper Caves | Attracted the attention of an 0b10 checkpoint 13667 | -4/Upper Caves | Learned Research terminal intel 13738 | -4/Upper Caves | Discovered new exit (range 15) 13759 | -4/Upper Caves | Entered another Upper Caves area 13763 | -4/Upper Caves | Learned 8 Research zone layouts 13770 | -4/Upper Caves | Discovered new exit (range 15) 13829 | -4/Upper Caves | Learned location of Armory (-3) 13896 | -4/Upper Caves | Attracted the attention of an 0b10 checkpoint 14125 | -4/Upper Caves | Encountered a Warlord checkpoint 14286 | -4/Upper Caves | Discovered new exit (range 4) 14292 | -4/Upper Caves | Entered Warlord 14355 | -4/Warlord | System corruption cleaned by Quarantine Array 14766 | -4/Warlord | Warlord's base attacked by MAIN.C 14981 | -4/Warlord | Build established: Hauler-Mutant 15079 | -4/Warlord | Met Warlord 15116 | -4/Warlord | Warlord forces counterattacked 15123 | -4/Warlord | Found Prototype Reactor 15123 | -4/Warlord | Identified Vortex Chain Reactor 15139 | -4/Warlord | Found Prototype Processor 15139 | -4/Warlord | Identified Spectral Analyzer 15697 | -4/Warlord | Discovered new exit (range 9) 15713 | -4/Warlord | Entered Proximity Caves 15714 | -3/Proximity Caves | Identified exit to Research 15745 | -3/Proximity Caves | Lost 10 parts (3n3u4w) 15818 | -3/Proximity Caves | Lost 3 parts (1p1n1w) 16178 | -3/Proximity Caves | Entered Research 16178 | -3/Research | Evolved 2 slots: Utility x2 16179 | -3/Research | Identified exit to Quarantine 16181 | -3/Research | Loaded intel: 20 terminal locations 16541 | -3/Research | System corruption reached 10% 16586 | -3/Research | Identified Transdimensional Reconstructor 16586 | -3/Research | Warped through subspace 16617 | -3/Research | Lost 14 parts (2p4n8w) 17584 | -3/Research | Lost 6 parts (1p3n1u1w) 17994 | -3/Research | System corruption reached 30% 18069 | -3/Research | Lost 6 parts (1p4u1w) 18310 | -3/Research | Lost 3 parts (1n1u1w) 18338 | -3/Research | Discovered new exit (range 8) 18573 | -3/Research | Entered another Research area 18573 | -2/Research | Warlord forces began assault on 0b10 18573 | -2/Research | Evolved 2 slots: Utility x2 18683 | -2/Research | Research machine network offline 18753 | -2/Research | Borebot progress halted 18766 | -2/Research | Borebot progress halted 18769 | -2/Research | Borebot progress halted 18967 | -2/Research | Found Vibroblade 18989 | -2/Research | Found Vibroblade 18994 | -2/Research | Build established: Scavenger-Mutant 19138 | -2/Research | Met up with Warlord 19195 | -2/Research | Spotted Striker 19195 | -2/Research | Spotted Executioner 19196 | -2/Research | Spotted Striker 19289 | -2/Research | Borebot progress halted 19446 | -2/Research | Warlord destroyed during the assault 19562 | -2/Research | Borebot progress halted 19563 | -2/Research | Borebot progress halted 19891 | -2/Research | Spotted Striker 19986 | -2/Research | Build established: Hauler-Mutant 20223 | -2/Research | Spotted B-90 Cyclops 20241 | -2/Research | Spotted Striker 20250 | -2/Research | Spotted Striker 20374 | -2/Research | Spotted Executioner 20377 | -2/Research | Spotted Striker 20398 | -2/Research | Activated Chronowheel 20398 | -2/Research | Spacetime reconverged on an earlier point 20422 | -2/Research | Crushed by falling debris 20489 | -2/Research | Crushed by falling debris 20510 | -2/Research | Crushed by falling debris 20512 | -2/Research | Crushed by falling debris 20523 | -2/Research | Crushed by falling debris 20554 | -2/Research | Lost 5 parts (5u) 20560 | -2/Research | Crushed by falling debris 20560 | -2/Research | System corruption reached 10% 20683 | -2/Research | Found Prototype Device 20683 | -2/Research | Identified Adv. Kinecellerator 20690 | -2/Research | Found Prototype Processor 20690 | -2/Research | Identified Exp. Targeting Computer 20700 | -2/Research | Found Prototype Processor 20700 | -2/Research | Identified Exp. Core Analyzer 20716 | -2/Research | Discovered new exit (range 22) 20788 | -2/Research | Spotted Striker 20789 | -2/Research | Entered Access 20789 | -1/Access | Evolved 2 slots: Utility x2 20875 | -1/Access | Spotted B-99 Colossus 20982 | -1/Access | Build established: Scavenger-Tank 21380 | -1/Access | Destroyed 9 combat bots 21742 | -1/Access | Found Prototype Device 21742 | -1/Access | Identified Thermal Barrier 22157 | -1/Access | Garrison activated, responded to threat 22769 | -1/Access | Found Zero-point Reactor 22773 | -1/Access | Found Zero-point Reactor 22777 | -1/Access | Found Zero-point Reactor 22779 | -1/Access | Found Zero-point Reactor 22784 | -1/Access | Found Zero-point Reactor 23340 | -1/Access | Energy Cycler disabled 23359 | -1/Access | Garrison activated, responded to threat 23555 | -1/Access | Destroyed 7 combat bots 23862 | -1/Access | System corruption reached 10% 24039 | -1/Access | First assault squad dispatched 24460 | -1/Access | Discovered new exit (range 8) 24471 | *** | Escaped! Last Messages --------------- 24378_ Destroyed Adv. Heat Sink. 24378_ System corrupted: Enh. Nova Cannon targeting data glitched. 24378_ Lgt. Particle Reactor melted. 24378_ Unknown Storage melted. 24378_ P-80 Master destroyed. 24386_ Ended siege mode. 24388_ R-10 Processor collects Mic. Fission Core. 24390_ Acquired 17 matter. 24391_ R-10 Processor collects Lgt. Particle Reactor. 24396_ R-10 Processor collects Adv. Target Analyzer. 24397_ R-10 Processor collects Unknown Storage. 24400_ R-10 Processor collects Imp. Antigrav System. 24408_ System corrupted: Matter fused (-7). 24445_ 7RZVDZSV&YU=NN:T|ONMB, 24448_ System corrupted: Enh. Nova Cannon targeting data glitched. 24455_ The unstable cave ceiling collapses. 24460_ The Access Shell folds into the floor. 24460_ EXIT=FOUND 24470_ System corrupted: Matter fused (-7). [Achievement: Tester] Map ----- +----------------------------------------------------+ | ########## " #???????????????????????????? | | # # ########+#+#????????????????? | | # # ^ # ###############??? | | # # #### # """S""" #??? | | # # ############# #??# # """ """ #??? | | + # #?????????### #### # #??? | | # # #?????????# ## # #??? | | # # ########### ## # #??? | | # % # # + %+ = %= #??? | | # %% # # !!! ## ## #####+#########??? | | #######/## # !!! ## ## ##### #??????????? | | !!%% # !!! ####+#### #??????????? | | !% % + ## #######+#??????????? | | ########### # ## #??????????????????? | | #####?# # ## #??????????????????? | | #?????# C# ## #??????????????????? | | """"#?????# # ## #??????????????????? | | """"#?????# ##################??????????????????? | | """#?????# #?????##"#??????????????????????????? | | """"#?????# ####### ##########??????????????????? | | """"#?????# """T""" "??????????????????? | | """"#?????# """ """ "????BB????????????? | | #?????# "????BB????????????? | | #?????# t "??????????????????? | | ###???# k "" "??????????????????? | | # #???# @" "??????????????????? | | #######???# k "??????????????????? | | # #???????# "????BB????????????? | | ###???????# "????BB????????????? | | ??????????# "??????????????????? | | ??????????# ####### ##########??????????????????? | | ??????????# ??????###???????????????????????????? | | ??????????# ?????????????????????????????????????? | | ??????????#??????????????????????????????????????? | | ?????????????????????????????????????????????????? | | ???????????w?????????????????????????????????????? | | ????????????g????????????????????????????????????? | | ?????????????????????????????????????????????????? | | ?????????????????????????????????????????????????? | | ?????????????????????????????????????????????????? | | ?????????????????????????????????????????????????? | | ?????????????????????????????????????????????????? | | ?????????????????????????????????????????????????? | | ?????????????????????????????????????????????????? | | ?????????????????????????????????????????????????? | | ?????????????????????????????????????????????????? | | ?????????????????????????????????????????????????? | | ?????????????????????????????????????????????????? | | ?????????????????????????????????????????????????? | | ?????????????????????????????????????????????????? | +----------------------------------------------------+ Best States ------------- Heat Dissipation 166 Coolant Potential 80 Energy Generation 71 Energy Capacity 1880 Matter Stores 329 Matter Capacity 800 Sight Range 24 Terrain Scan Range 20 Terrain Scan Density 110 Jamming Range 16 Power Amplification 30 EM Shielding 4 Corruption Prevention 12 Armor Coverage 3150 Resistance: KI 30 Resistance: TH 50 Resistance: EX 50 Resistance: EM 25 Core Shielding 30 Utility Shielding 66 Weapon Shielding 66 Phase Shifting 15 Evasion (%) 55 Targeting Accuracy 12 Melee Accuracy 8 Target Analysis 8 Core Analysis 15 Armor Integrity Analysis 66 Recoil Reduction 4 Energy Filtering 30 Kinecelleration 50 Salvage Targeting 2 Offensive Hacking 14 Item Schematics ----------------- Lrg. Storage Unit | -10/Materials | Hacked Med. Storage Unit | -9/Mines | Hacked Grenade Launcher | -9/Mines | Hacked Hrd. Medium Armor Plating | -8/Materials | Scanalyzed Assault Drone Bay | -5/Zhirov | Free Exp. Heat Sink | -5/Zhirov | Free Exp. Optical Array | -5/Zhirov | Free Imp. Arc Thrower | -5/Zhirov | Free Exp. Energy Well | -3/Research | Scanalyzed Robot Schematics ------------------ None Fabricated ------------ Adv. Medium Treads | x2 | -7/Factory | Preloaded Lrg. Storage Unit | x1 | -7/Factory Alien Tech Used ----------------- Integrated Reactor Transdimensional Reconstructor Achievements -------------- All-out Warlord Hehehe Overkill Packrat Tank Tester Turtlemind Challenges ------------ None Game ------ Seed BurstShadingUnit Manual? 0 Play Time 04:39:22 Cumulative 42.8 hours Start 2019.11.05 @ 11:08:13 End 2019.11.05 @ 19:27:31 Sessions 13 Manual Loads 0 Difficulty Rogue Special Mode None Game No. 27 Rogue 27 Adventurer 0 Explorer 0 Win Type 0 Total 7 Types 7/0/0/0/0/0/0 Lore% 56 Gallery% 53 Achievement% 41 Wizard Run 0 Options --------- ASCII 0 Keyboard 0 Movement Vi Keybinds 0 Fullscreen 0 Font 14/SmallcapsGlow Map View 72x52 Tactical HUD 1 Map Filters NONE Filters NONE Steam 0 RUN: 47ed8631-c0b6-484e-a54f-f0c1cf6b31d5